bitfinex/quotes_SOLUSD_20240712
["timestamp","ask_amount","ask_price","bid_price","bid_amount"]
[1720782399822,7.3699,135.69,135.65,7.3718]
[1720782400432,7.3694,135.7,135.65,7.3718]
[1720782400936,7.3698,135.69,135.65,7.3718]
[1720782401405,7.3703,135.68,135.64,13.7588]
[1720782402236,7.3703,135.68,135.64,6.3865]
[1720782402542,7.3709,135.67,135.64,7.86075845]
[1720782402735,18.4218,135.71,135.64,6.3865]
[1720782402936,7.371,135.67,135.64,6.3865]
[1720782403121,20.0,135.7,135.64,6.3865]
[1720782403122,7.3705,135.68,135.64,6.3865]
[1720782404537,7.3709,135.67,135.64,6.3865]
[1720782404854,20.0,135.7,135.65,1.47404108]
[1720782404855,7.3705,135.68,135.65,1.47404108]
[1720782405038,7.3699,135.69,135.65,1.47404108]
[1720782405221,20.0,135.7,135.64,6.3865]
[1720782405554,7.3708,135.67,135.64,6.3865]
[1720782406748,7.3708,135.67,135.64,7.86032373]
[1720782407647,7.3705,135.68,135.65,1.47371508]
[1720782408552,7.3705,135.68,135.64,13.7588]
[1720782408756,7.3705,135.68,135.65,1.4733892]
[1720782409334,7.3709,135.67,135.64,6.3865]
[1720782410651,7.3705,135.68,135.64,13.7589]
[1720782412356,7.3705,135.68,135.64,6.3865]
[1720782412562,7.371,135.67,135.64,6.3865]
[1720782414249,7.3713,135.66,135.64,6.3865]
[1720782414447,14.64,135.68,135.64,6.3865]
[1720782414653,7.3709,135.67,135.64,6.3865]
[1720782416070,7.3714,135.66,135.64,6.3865]
[1720782416772,22.011,135.67,135.64,6.3865]
[1720782417351,7.3713,135.66,135.64,6.3865]
[1720782417552,22.011,135.67,135.64,6.3865]
[1720782418058,7.3714,135.66,135.64,6.3865]
[1720782418677,7.3709,135.67,135.64,6.3865]
[1720782419180,22.0109,135.67,135.64,6.3865]
[1720782420170,22.0115,135.66,135.62,7.3734]
[1720782421075,14.64,135.65,135.62,7.3734]
[1720782421664,30.0,135.7,135.64,7.3723]
[1720782421665,14.64,135.67,135.64,7.3723]
[1720782421951,7.3708,135.67,135.63,7.3727]
[1720782423168,7.3708,135.67,135.63,8.84709451]
[1720782423568,7.3706,135.68,135.65,6.2444]
[1720782423876,7.3708,135.67,135.65,6.2444]
[1720782424665,22.0108,135.67,135.65,6.2444]
[1720782424861,7.3713,135.66,135.65,6.2444]
[1720782425174,22.0113,135.66,135.65,6.2444]
[1720782425548,22.0113,135.66,135.62,7.3732]
[1720782425549,22.0113,135.66,135.62,13.9388]
[1720782426370,22.011,135.67,135.63,7.3728]
[1720782427059,14.64,135.65,135.62,13.939]
[1720782428676,14.64,135.66,135.63,7.3728]
[1720782429360,22.0114,135.66,135.62,13.9388]
[1720782429753,14.64,135.65,135.62,13.9388]
[1720782430273,14.64,135.65,135.63,7.3729]
[1720782430684,22.0114,135.66,135.63,7.3729]
[1720782432481,14.64,135.66,135.63,7.3729]
[1720782432896,7.371,135.67,135.63,7.3729]
[1720782433078,22.011,135.67,135.63,7.3729]
[1720782433255,7.3714,135.66,135.62,28.5789]
[1720782434381,7.3714,135.66,135.62,15.41337507]
[1720782437256,22.0114,135.66,135.62,15.41337507]
[1720782438688,22.0114,135.66,135.62,13.9389]
[1720782438983,7.3719,135.65,135.62,6.5656]
[1720782439583,22.0114,135.66,135.62,6.5656]
[1720782439771,7.3714,135.66,135.62,13.9386]
[1720782441409,20.0,135.7,135.62,6.5656]
[1720782441584,9.52154648,135.69,135.66,7.3713]
[1720782443579,22.0098,135.69,135.65,7.3717]
[1720782443883,7.3709,135.67,135.64,15.45477735]
[1720782444224,7.3709,135.67,135.63,22.0127]
[1720782444483,22.0105,135.68,135.64,8.58527141]
[1720782444689,22.0105,135.68,135.65,1.21288199]
[1720782445486,7.3705,135.68,135.65,1.21288199]
[1720782445768,22.0099,135.69,135.65,8.58468199]
[1720782446885,7.3689,135.71,135.67,28.6032]
[1720782447087,7.3689,135.71,135.67,30.01832442]
[1720782447989,7.3689,135.71,135.67,30.01866491]
[1720782449096,7.3689,135.71,135.67,28.6032]
[1720782450697,7.3692,135.7,135.67,6.5928]
[1720782450891,7.3692,135.7,135.67,8.00864115]
[1720782451587,22.0097,135.69,135.65,7.3716]
[1720782453202,14.64,135.69,135.66,7.3713]
[1720782454378,7.3698,135.69,135.65,7.3716]
[1720782454698,7.3694,135.7,135.66,7.3712]
[1720782454904,14.64,135.68,135.66,7.3712]
[1720782457207,14.64,135.68,135.67,7.3708]
[1720782457377,14.64,135.69,135.67,7.3708]
[1720782458188,18.4231,135.7,135.63,28.8619]
[1720782458508,14.64,135.66,135.63,21.489]
[1720782459087,14.64,135.67,135.64,7.3723]
[1720782460019,7.3695,135.7,135.66,7.3713]
[1720782460322,14.64,135.67,135.64,7.3721]
[1720782463282,14.64,135.66,135.63,28.8617]
[1720782464511,14.64,135.67,135.64,7.3722]
[1720782465612,14.64,135.67,135.63,28.8617]
[1720782467712,14.64,135.66,135.63,13.7847]
[1720782469899,14.64,135.66,135.63,7.3727]
[1720782470987,14.64,135.65,135.63,7.3727]
[1720782472000,14.64,135.66,135.64,7.3723]
[1720782472408,7.3704,135.68,135.64,7.3723]
[1720782472598,7.3698,135.69,135.65,7.3718]
[1720782472886,14.64,135.68,135.65,7.3718]
[1720782474490,14.64,135.68,135.64,7.3722]
[1720782475414,22.0103,135.68,135.64,7.3722]
[1720782476197,7.3709,135.67,135.63,22.0128]
[1720782476511,14.64,135.66,135.63,7.3728]
[1720782476714,14.64,135.66,135.61,14.64]
[1720782476715,14.64,135.66,135.64,7.3723]
[1720782476911,22.0105,135.68,135.64,7.3723]
[1720782477116,14.64,135.67,135.64,7.3723]
[1720782488620,22.0105,135.68,135.64,7.3723]
[1720782489530,7.3708,135.67,135.64,7.3723]
[1720782490129,22.0105,135.68,135.65,7.3719]
[1720782490635,7.3705,135.68,135.65,7.3719]
[1720782491918,7.3705,135.68,135.64,8.8465368]
[1720782492232,22.0105,135.68,135.64,7.3722]
[1720782492818,22.0105,135.68,135.64,8.84622084]
[1720782494933,22.0105,135.68,135.64,7.3722]
[1720782495806,22.0105,135.68,135.64,8.8465452]
[1720782496527,7.3705,135.68,135.64,8.8465452]
[1720782496749,7.61942038,135.72,135.66,14.64]
[1720782496910,9.52696944,135.71,135.68,7.37]
[1720782497230,22.0082,135.72,135.68,7.37]
[1720782497828,7.3686,135.71,135.67,23.48456145]
[1720782498149,7.3686,135.71,135.67,22.0106]
[1720782498519,7.3686,135.71,135.67,7.3706]
[1720782499026,7.3686,135.71,135.67,22.0106]
[1720782502242,14.64,135.73,135.68,16.11397809]
[1720782502423,7.3673,135.74,135.7,7.3688]
[1720782502626,7.3673,135.74,135.7,30.05353734]
[1720782503219,7.3673,135.74,135.7,28.5799]
[1720782503525,7.3673,135.74,135.7,13.9399]
[1720782504336,22.0073,135.74,135.7,13.9399]
[1720782505052,14.1042616,135.75,135.71,7.3686]
[1720782505338,28.7442616,135.75,135.71,7.3686]
[1720782505921,14.64,135.74,135.71,7.3686]
[1720782507142,6.7375616,135.75,135.72,7.368]
[1720782507460,14.64,135.77,135.74,7.367]
[1720782508026,22.0054,135.77,135.72,14.64]
[1720782508237,14.64,135.76,135.72,14.64]
[1720782508538,7.3654,135.77,135.72,14.64]
[1720782508744,22.0054,135.77,135.72,14.64]
[1720782509824,14.64,135.77,135.72,14.64]
[1720782510232,14.64,135.77,135.73,1.47333813]
[1720782510443,6.7375616,135.79,135.74,16.11322958]
[1720782510636,21.3775616,135.79,135.74,16.11322958]
[1720782511322,28.7418616,135.79,135.74,16.11322958]
[1720782511514,28.7418616,135.79,135.74,14.64]
[1720782511515,14.1018616,135.79,135.74,14.64]
[1720782511735,6.7375616,135.79,135.75,6.2156]
[1720782511923,14.64,135.81,135.76,14.64]
[1720782512244,7.6347506,135.8,135.76,16.11297409]
[1720782513342,7.6347506,135.8,135.77,1.47299005]
[1720782513550,14.64,135.81,135.76,16.11292547]
[1720782513739,14.64,135.81,135.77,1.47281698]
[1720782513943,7.3628,135.82,135.77,16.11281698]
[1720782514254,22.0028,135.82,135.77,16.11281698]
[1720782514427,7.3632,135.81,135.77,14.64]
[1720782515046,7.3632,135.81,135.77,16.11294288]
[1720782515560,7.3628,135.82,135.77,16.11294288]
[1720782515771,22.0028,135.82,135.77,16.11294288]
[1720782515942,22.0028,135.82,135.77,14.64]
[1720782517934,14.64,135.81,135.76,15.2983]
[1720782518134,14.64,135.8,135.76,15.2983]
[1720782519244,14.64,135.81,135.77,14.64]
[1720782520162,14.64,135.81,135.76,29.9383]
[1720782521178,14.64,135.79,135.76,15.2983]
[1720782523071,14.64,135.78,135.75,6.2156]
[1720782523453,14.64,135.79,135.75,6.2156]
[1720782523656,7.3639,135.8,135.75,20.8556]
[1720782523879,14.64,135.8,135.75,20.8556]
[1720782524979,14.64,135.79,135.75,6.2156]
[1720782525876,14.64,135.79,135.75,7.2731654]
[1720782526179,7.3634,135.81,135.75,7.2731654]
[1720782526382,14.64,135.79,135.75,7.2731654]
[1720782526564,7.3634,135.81,135.75,21.9131654]
[1720782526881,14.64,135.8,135.75,21.9131654]
[1720782527254,22.0038,135.8,135.75,21.9131654]
[1720782528758,7.3644,135.79,135.75,20.8556]
[1720782529088,7.3644,135.79,135.75,6.2156]
[1720782529463,22.0044,135.79,135.75,6.2156]
[1720782530970,7.3638,135.8,135.75,6.2156]
[1720782531167,14.64,135.79,135.75,6.2156]
[1720782532776,22.0038,135.8,135.75,20.8556]
[1720782533283,7.3634,135.81,135.75,20.8556]
[1720782533592,14.64,135.8,135.75,20.8556]
[1720782536375,22.0037,135.8,135.75,20.8556]
[1720782536878,14.64,135.82,135.77,14.64]
[1720782537189,14.1001616,135.83,135.77,14.64]
[1720782537382,14.64,135.82,135.77,14.64]
[1720782537892,22.0028,135.82,135.77,14.64]
[1720782538477,7.3632,135.81,135.77,14.64]
[1720782538671,7.3638,135.8,135.75,6.2156]
[1720782538876,22.0038,135.8,135.75,20.8556]
[1720782539276,14.64,135.8,135.75,20.8556]
[1720782540794,7.3634,135.81,135.75,20.8556]
[1720782541005,14.64,135.81,135.76,14.64]
[1720782541502,14.64,135.81,135.75,6.2156]
[1720782541709,14.64,135.81,135.76,14.64]
[1720782549607,14.64,135.81,135.75,6.2156]
[1720782550292,14.64,135.81,135.76,14.64]
[1720782552490,6.7375616,135.83,135.75,6.2156]
[1720782552696,21.3775616,135.83,135.78,14.64]
[1720782552883,14.64,135.81,135.75,6.2156]
[1720782553210,14.64,135.81,135.76,14.64]
[1720782559500,14.64,135.81,135.75,22.32868841]
[1720782564307,10.0,135.81,135.75,6.2156]
[1720782564599,14.64,135.77,135.72,6.5286]
[1720782564802,14.64,135.74,135.72,6.5286]
[1720782565006,14.64,135.74,135.7,15.6498]
[1720782566907,76.9707,135.8,135.69,6.5286]
[1720782566908,22.0076,135.73,135.69,6.5286]
[1720782567109,22.0076,135.73,135.66,15.6002]
[1720782567110,10.0,135.75,135.66,22.1655]
[1720782567317,21.3128,135.77,135.66,22.1655]
[1720782567318,14.64,135.69,135.66,22.1655]
[1720782569335,24.64,135.73,135.63,22.1655]
[1720782569336,7.3695,135.7,135.63,22.1655]
[1720782569524,7.3695,135.7,135.65,7.3718]
[1720782569525,14.64,135.67,135.65,7.3718]
[1720782571536,7.3691,135.71,135.64,14.64]
[1720782571854,7.3691,135.71,135.63,22.1655]
[1720782571855,14.64,135.7,135.66,7.3712]
[1720782572704,22.0092,135.7,135.66,7.3712]
[1720782573113,16.1758,135.76,135.69,7.3692]
[1720782573318,7.3681,135.72,135.63,22.1655]
[1720782573531,22.0081,135.72,135.68,7.3698]
[1720782573831,22.0081,135.72,135.68,7.3702]
[1720782574196,7.3688,135.71,135.67,7.3707]
[1720782574401,14.64,135.71,135.68,7.3702]
[1720782574720,22.0087,135.71,135.67,7.3706]
[1720782575133,18.4162,135.75,135.67,16.11328604]
[1720782575430,22.0079,135.73,135.69,7.3695]
[1720782576407,7.3681,135.72,135.68,22.0101]
[1720782578822,22.0089,135.71,135.67,22.0107]
[1720782579641,22.0089,135.71,135.67,7.3707]
[1720782582260,14.64,135.71,135.67,7.3707]
[1720782582726,14.64,135.71,135.68,7.3702]
[1720782589251,14.64,135.71,135.68,7.3702]
[1720782590953,14.64,135.71,135.69,7.3695]
[1720782591252,14.64,135.73,135.68,14.64]
[1720782591418,22.0075,135.73,135.69,7.3694]
[1720782593155,14.64,135.72,135.69,7.3694]
[1720782593952,22.0081,135.72,135.68,7.37]
[1720782594334,7.3681,135.72,135.68,7.37]
[1720782594531,22.0081,135.72,135.68,7.37]
[1720782596877,14.64,135.72,135.69,7.3697]
[1720782597664,7.3678,135.73,135.69,7.3697]
[1720782597834,14.64,135.72,135.69,7.3697]
[1720782598034,22.0078,135.73,135.69,7.3697]
[1720782598673,7.3681,135.72,135.68,22.01]
[1720782599973,7.3681,135.72,135.68,14.64]
[1720782600173,22.0081,135.72,135.67,22.0105]
[1720782600777,14.64,135.72,135.68,7.3701]
[1720782600979,7.3669,135.75,135.7,7.3688]
[1720782601280,22.0067,135.75,135.71,7.3686]
[1720782601458,7.3667,135.75,135.71,7.3686]
[1720782601656,22.0067,135.75,135.71,7.3686]
[1720782602181,7.367,135.74,135.7,7.369]
[1720782603972,7.3665,135.75,135.71,7.3685]
[1720782604179,14.64,135.75,135.72,7.3681]
[1720782604382,44.9195616,135.76,135.72,7.3681]
[1720782604579,44.9195616,135.76,135.71,22.48002626]
[1720782604750,44.9195616,135.76,135.71,22.0084]
[1720782606074,44.9195616,135.76,135.68,21.5615]
[1720782606075,14.64,135.75,135.7,14.64]
[1720782606282,14.64,135.75,135.69,14.64]
[1720782606485,14.64,135.75,135.69,15.7174834]
[1720782606882,14.64,135.75,135.7,14.64]
[1720782607070,22.0068,135.75,135.7,14.64]
[1720782607861,7.367,135.74,135.7,22.0089]
[1720782608063,22.0067,135.75,135.71,7.3686]
[1720782609680,22.0067,135.75,135.7,14.64]
[1720782609681,7.3671,135.74,135.7,22.009]
[1720782609973,22.0071,135.74,135.7,7.369]
[1720782611585,14.64,135.74,135.71,7.3686]
[1720782612691,22.0067,135.75,135.71,7.3686]
[1720782615280,7.367,135.74,135.7,22.0088]
[1720782615874,22.007,135.74,135.7,7.3688]
[1720782617802,14.64,135.74,135.71,7.3685]
[1720782618984,22.0066,135.75,135.71,7.3685]
[1720782622776,14.64,135.74,135.71,7.3685]
[1720782624802,14.64,135.75,135.71,7.3683]
[1720782624987,22.0065,135.75,135.71,7.3683]
[1720782627304,14.64,135.75,135.72,7.3679]
[1720782627489,28.7435616,135.76,135.72,7.3679]
[1720782627873,14.1035616,135.76,135.72,7.3679]
[1720782628195,22.006,135.76,135.72,7.3679]
[1720782629207,7.366,135.76,135.72,7.3679]
[1720782629423,22.006,135.76,135.72,7.3679]
[1720782630199,7.366,135.76,135.72,7.3679]
[1720782630512,34.8531,135.79,135.74,14.64]
[1720782630513,22.0046,135.79,135.74,14.64]
[1720782631894,7.3648,135.78,135.74,14.64]
[1720782632383,22.0045,135.79,135.74,14.64]
[1720782633510,7.3645,135.79,135.74,14.64]
[1720782633801,22.0045,135.79,135.74,14.64]
[1720782634511,7.3648,135.78,135.74,14.64]
[1720782635608,22.0048,135.78,135.73,15.66567537]
[1720782636490,7.3648,135.78,135.74,14.64]
[1720782637312,7.3645,135.79,135.75,14.64]
[1720782637784,23.58220297,135.82,135.78,14.64]
[1720782637785,7.71300297,135.82,135.78,14.64]
[1720782637986,22.0019,135.84,135.79,14.64]
[1720782639213,22.0031,135.82,135.77,20.9191]
[1720782639689,7.3632,135.81,135.77,6.2791]
[1720782640217,14.64,135.8,135.75,14.64]
[1720782641404,14.64,135.8,135.76,14.64]
[1720782641791,7.3632,135.81,135.76,14.64]
[1720782642012,22.0032,135.81,135.76,14.64]
[1720782642220,14.64,135.79,135.74,6.4819]
[1720782642399,14.64,135.79,135.74,21.1219]
[1720782644511,22.004,135.8,135.75,14.64]
[1720782650904,22.004,135.8,135.74,6.4819]
[1720782651215,22.004,135.8,135.75,14.64]
[1720782654525,7.364,135.8,135.76,14.64]
[1720782655509,7.3634,135.81,135.76,14.64]
[1720782655839,7.3637,135.8,135.74,6.4819]
[1720782656000,7.3637,135.8,135.76,14.64]
[1720782656634,7.3637,135.8,135.75,14.64]
[1720782657825,7.3637,135.8,135.76,14.64]
[1720782660335,18.4068,135.82,135.74,6.4819]
[1720782660629,7.365,135.78,135.75,14.64]
[1720782661015,7.3645,135.79,135.74,6.4819]
[1720782661215,7.3645,135.79,135.75,14.64]
[1720782662308,14.64,135.8,135.75,14.64]
[1720782662912,22.0037,135.8,135.75,14.64]
[1720782663114,22.0037,135.8,135.75,16.11308455]
[1720782663332,7.3643,135.79,135.76,14.64]
[1720782663719,7.3643,135.79,135.75,14.64]
[1720782665113,14.64,135.77,135.7,22.5593]
[1720782665306,7.3684,135.72,135.66,21.7132]
[1720782665512,14.64,135.7,135.63,21.7132]
[1720782665723,14.64,135.69,135.64,14.64]
[1720782665917,7.37,135.69,135.63,21.7132]
[1720782666219,14.64,135.68,135.63,36.3532]
[1720782666845,14.64,135.68,135.65,7.3716]
[1720782667035,22.0093,135.7,135.66,7.3713]
[1720782667221,14.64,135.7,135.66,7.3713]
[1720782667539,14.64,135.71,135.67,14.64]
[1720782667843,22.0081,135.72,135.67,14.64]
[1720782668026,7.3687,135.71,135.67,22.0107]
[1720782668646,22.0087,135.71,135.66,22.0111]
[1720782669518,7.3682,135.72,135.67,7.3705]
[1720782669716,14.64,135.71,135.67,7.3705]
[1720782670442,22.0082,135.72,135.67,23.48421783]
[1720782673352,7.3687,135.71,135.67,22.0105]
[1720782674420,22.0087,135.71,135.67,7.3705]
[1720782675047,7.3693,135.7,135.66,14.64]
[1720782675723,22.0093,135.7,135.66,14.64]
[1720782676722,22.0093,135.7,135.66,22.0112]
[1720782676943,14.64,135.7,135.66,22.0112]
[1720782677122,7.3688,135.71,135.67,7.3707]
[1720782677322,22.0088,135.71,135.67,7.3707]
[1720782678126,22.0088,135.71,135.66,22.0111]
[1720782678749,14.64,135.7,135.66,7.3711]
[1720782680331,14.64,135.69,135.66,7.3711]
[1720782680632,22.0097,135.69,135.65,7.3716]
[1720782682654,14.64,135.69,135.65,7.3716]
[1720782683452,14.64,135.69,135.66,7.3712]
[1720782686456,14.64,135.7,135.66,7.3712]
[1720782687858,14.64,135.69,135.66,7.3712]
[1720782688651,22.0097,135.69,135.65,7.3717]
[1720782688838,14.64,135.67,135.65,7.3717]
[1720782689043,14.64,135.68,135.65,7.3717]
[1720782689551,14.64,135.67,135.65,7.3717]
[1720782692443,14.64,135.68,135.66,7.3713]
[1720782693355,14.64,135.67,135.64,7.3721]
[1720782693563,14.64,135.66,135.64,7.3721]
[1720782695459,14.64,135.65,135.64,7.3721]
[1720782697866,14.64,135.66,135.64,7.3721]
[1720782705065,14.64,135.65,135.64,7.3721]
[1720782705542,14.64,135.65,135.63,7.3728]
[1720782713163,14.64,135.65,135.62,7.3733]
[1720782716284,14.64,135.65,135.6,36.9779]
[1720782716577,7.3731,135.63,135.58,7.3754]
[1720782716751,14.64,135.61,135.58,7.3754]
[1720782717163,14.64,135.6,135.57,0.8520073]
[1720782717373,14.64,135.59,135.57,8.2282073]
[1720782718071,43.7452,135.65,135.57,0.8520073]
[1720782718072,14.64,135.58,135.57,0.8520073]
[1720782719278,24.64,135.58,135.57,0.8520073]
[1720782719490,97.0157,135.58,135.57,0.8520073]
[1720782721059,89.64,135.58,135.49,6.0635]
[1720782721257,14.64,135.52,135.49,7.3802]
[1720782721485,7.3784,135.54,135.49,7.3802]
[1720782721777,14.64,135.56,135.53,7.3783]
[1720782721968,14.64,135.57,135.52,21.1265]
[1720782722276,14.64,135.56,135.52,6.4865]
[1720782722479,14.64,135.55,135.52,13.8652]
[1720782722777,14.64,135.56,135.53,7.3784]
[1720782722971,14.64,135.58,135.53,14.64]
[1720782723674,22.0157,135.58,135.54,7.3777]
[1720782723882,14.64,135.58,135.54,7.3777]
[1720782724258,14.64,135.58,135.55,7.3772]
[1720782724474,7.3748,135.6,135.55,7.3772]
[1720782724686,14.64,135.59,135.55,7.3772]
[1720782724980,22.0152,135.59,135.55,7.3772]
[1720782725175,22.0162,135.57,135.53,7.3782]
[1720782725376,14.64,135.56,135.52,13.8653]
[1720782727063,7.3762,135.57,135.52,13.8653]
[1720782727064,14.64,135.55,135.52,13.8653]
[1720782727391,14.64,135.55,135.52,6.4865]
[1720782727880,14.64,135.56,135.52,6.4865]
[1720782728086,7.3764,135.57,135.53,7.3783]
[1720782728383,22.0164,135.57,135.53,7.3783]
[1720782729377,22.0164,135.57,135.52,28.5052]
[1720782729565,22.0168,135.56,135.52,13.8652]
[1720782730172,22.0163,135.57,135.52,28.5052]
[1720782730762,7.3758,135.58,135.53,14.64]
[1720782730971,22.0158,135.58,135.53,14.64]
[1720782731775,7.3764,135.57,135.53,14.64]
[1720782731965,22.0164,135.57,135.52,28.5051]
[1720782732166,22.0171,135.56,135.52,6.4865]
[1720782733684,22.0171,135.56,135.52,13.8654]
[1720782734068,14.64,135.55,135.52,6.4865]
[1720782735488,14.64,135.56,135.52,13.8654]
[1720782735677,7.3759,135.58,135.52,21.1265]
[1720782735876,7.3759,135.58,135.54,22.0178]
[1720782736087,7.3759,135.58,135.54,7.3778]
[1720782736295,22.0159,135.58,135.54,7.3778]
[1720782737275,7.70719163,135.61,135.55,16.11528153]
[1720782737475,7.3744,135.61,135.56,14.64]
[1720782737677,22.0144,135.61,135.56,14.64]
[1720782738186,22.0144,135.61,135.57,7.3762]
[1720782738397,7.3744,135.61,135.57,7.3762]
[1720782738570,22.0144,135.61,135.57,7.3762]
[1720782741503,18.4312,135.64,135.58,7.3755]
[1720782741681,22.0138,135.62,135.58,7.3755]
[1720782741878,22.0138,135.62,135.57,45.66084831]
[1720782742498,14.64,135.62,135.57,45.66084831]
[1720782742794,22.0137,135.62,135.58,7.3755]
[1720782743200,22.0137,135.62,135.57,45.66084831]
[1720782743401,7.3742,135.61,135.57,44.1861]
[1720782743799,7.3742,135.61,135.57,36.8101]
[1720782744093,7.3746,135.6,135.57,22.1701]
[1720782744307,7.3758,135.58,135.54,13.5442]
[1720782744609,22.0154,135.59,135.54,28.1842]
[1720782745293,14.64,135.58,135.54,6.1666]
[1720782745495,22.016,135.58,135.54,6.1666]
[1720782745692,14.64,135.57,135.54,6.1666]
[1720782745999,22.016,135.58,135.54,13.5443]
[1720782746496,22.016,135.58,135.54,6.1666]
[1720782747400,22.0163,135.57,135.53,7.3782]
[1720782748688,7.3755,135.59,135.54,7.3776]
[1720782748894,22.0157,135.58,135.54,7.3776]
[1720782749696,22.0157,135.58,135.53,22.0181]
[1720782750003,14.64,135.57,135.53,7.3781]
[1720782752284,14.64,135.57,135.54,7.3777]
[1720782752805,22.0157,135.58,135.54,7.3777]
[1720782753917,44.5086,135.64,135.54,1.47514571]
[1720782754203,7.3743,135.61,135.57,7.3759]
[1720782754381,22.0143,135.61,135.56,23.49152807]
[1720782754576,14.64,135.6,135.56,8.85152807]
[1720782754986,22.0143,135.61,135.56,23.49152807]
[1720782755187,22.0143,135.61,135.57,7.376]
[1720782756293,22.0143,135.61,135.56,23.49142807]
[1720782756690,22.0143,135.61,135.57,7.3762]
[1720782758015,22.0143,135.61,135.56,23.49152807]
[1720782758191,18.4272,135.67,135.58,14.64]
[1720782758396,14.64,135.64,135.59,14.64]
[1720782758593,22.0127,135.64,135.6,7.3742]
[1720782759301,22.0127,135.64,135.59,22.0149]
[1720782759609,22.013,135.63,135.59,7.3749]
[1720782759912,14.64,135.63,135.59,7.3749]
[1720782760627,14.64,135.62,135.57,14.64]
[1720782760908,22.0137,135.62,135.58,7.3756]
[1720782762205,14.64,135.61,135.58,7.3756]
[1720782762992,22.0142,135.61,135.57,7.376]
[1720782763892,14.64,135.61,135.58,7.3756]
[1720782764915,7.3743,135.61,135.55,37.0763]
[1720782765207,14.64,135.57,135.52,6.5047]
[1720782765407,14.64,135.57,135.52,21.1447]
[1720782765910,14.64,135.56,135.52,6.5047]
[1720782766117,7.3771,135.56,135.48,6.5067]
[1720782766301,7.3771,135.56,135.51,7.3793]
[1720782766302,14.64,135.54,135.51,7.3793]
[1720782766915,15.4362,135.59,135.51,14.64]
[1720782767215,14.64,135.56,135.53,7.3781]
[1720782767417,7.3759,135.58,135.53,7.3781]
[1720782767587,14.64,135.58,135.54,7.3778]
[1720782768721,22.8115,135.59,135.54,7.3778]
[1720782769013,7.3747,135.6,135.55,7.3772]
[1720782769195,7.3752,135.59,135.55,7.3772]
[1720782769701,7.3752,135.59,135.54,7.3777]
[1720782770093,7.3758,135.58,135.54,7.3777]
[1720782770711,7.3758,135.58,135.52,15.4967]
[1720782770902,7.3758,135.58,135.53,7.3781]
[1720782771523,7.3764,135.57,135.53,7.3781]
[1720782772036,7.3764,135.57,135.52,22.8755]
[1720782772201,7.3759,135.58,135.52,15.4967]
[1720782772725,7.3759,135.58,135.53,7.3782]
[1720782773016,7.3763,135.57,135.53,7.3782]
[1720782774019,7.3759,135.58,135.53,7.3782]
[1720782774825,7.3753,135.59,135.54,7.3778]
[1720782776711,7.3753,135.59,135.55,7.3772]
[1720782777622,7.3753,135.59,135.54,7.3776]
[1720782778313,7.3757,135.58,135.54,7.3776]
[1720782779824,7.3757,135.58,135.53,13.729]
[1720782780123,7.3763,135.57,135.53,13.729]
[1720782780824,7.3758,135.58,135.54,7.3778]